[Event "HUN-chT Youth-Children 2018"]
[Site "Zalakaros"]
[Date "2018.07.27"]
[Round "4"]
[White "Kovacs, Bence"]
[Black "Forgacs, Attila Jr"]
[Result "1/2-1/2"]
[ECO "C77"]
[WhiteElo "1994"]
[BlackElo "1911"]
[Annotator "NA"]
[PlyCount "129"]
[EventDate "2018.07.26"]
[EventType "team-tourn"]
[EventCountry "HUN"]
[SourceTitle "playchess.com"]
[Source "ChessBase"]
[SourceQuality "1"]
[TimeControl "5400+30"]

1. e4 {[%emt 0:00:00]} e5 {[%emt 0:00:12]} 2. Nf3 {[%emt 0:00:00]} Nc6 {[%emt 0:00:12]} 3. Bb5 {[%emt 0:00:00]} a6 {[%emt 0:00:06]} 4. Ba4 {[%emt 0:00:00]} Nf6 {[%emt 0:00:08]} 5. d3 {[%emt 0:00:25]} d6 {[%emt 0:07:06]} 6. c3 {[%emt 0:01:43]} Be7 {[%emt 0:01:38]} 7. Nbd2 {[%emt 0:00:14]} O-O {[%emt 0:00:45]} 8. Nf1 {[%emt 0:00:09]} b5 {[%emt 0:01:12]} 9. Bc2 {[%emt 0:01:45]} Re8 {[%emt 0:01:43]} 10. Ng3 {[%emt 0:00:20]} Bf8 {[%emt 0:01:50]} 11. O-O {[%emt 0:00:45]} g6 {[%emt 0:03:58]} 12. h3 {[%emt 0:01:53]} Bg7 {[%emt 0:00:20]} 13. Nh2 {[%emt 0:10:14]} d5 {[%emt 0:03:20]} 14. Qe2 {[%emt 0:00:44]} Bb7 {[%emt 0:05:36]} 15. Ng4 {[%emt 0:16:10]} Nxg4 {[%emt 0:02:39]} 16. Qxg4 {[%emt 0:00:45]} Bc8 {[%emt 0:14:42]} 17. Qg5 {[%emt 0:07:42]} Qxg5 {[%emt 0:02:22]} 18. Bxg5 {[%emt 0:00:01]} Be6 {[%emt 0:04:14]} 19. Bd2 {[%emt 0:27:30]} Rad8 {[%emt 0:05:49]} 20. f4 {[%emt 0:06:48]} dxe4 {[%emt 0:02:23]} 21. Nxe4 {[%emt 0:00:31]} Bf5 {[%emt 0:01:59]} 22. Bc1 {[%emt 0:03:14]} exf4 {[%emt 0:15:57]} 23. Bxf4 {[%emt 0:00:54]} Ne5 {[%emt 0:02:16]} 24. Rad1 {[%emt 0:09:55]} Bxe4 {[%emt 0:08:22]} 25. dxe4 {[%emt 0:00:06]} c5 {[%emt 0:01:58]} 26. Bg5 {[%emt 0:02:03]} Rxd1 {[%emt 0:00:57]} 27. Rxd1 {[%emt 0:00:19]} h6 {[%emt 0:02:13]} 28. Bf4 {[%emt 0:01:26]} Nc4 {[%emt 0:02:27]} 29. b3 {[%emt 0:06:09]} Na3 {[%emt 0:00:26]} 30. Bd3 {[%emt 0:01:52]} Bxc3 {[%emt 0:01:36]} 31. Bc1 {[%emt 0:00:46]} Bd4+ {[%emt 0:01:19]} 32. Kh2 {[%emt 0:00:26]} b4 {[%emt 0:01:25]} 33. Bxa3 {[%emt 0:00:44]} bxa3 {[%emt 0:00:07]} 34. Rc1 {[%emt 0:00:44]} a5 {[%emt 0:01:27]} 35. Rf1 {[%emt 0:00:26]} Re7 {[%emt 0:01:53]} 36. Kg3 {[%emt 0:00:26]} Kg7 {[%emt 0:01:10]} 37. Kh2 {[%emt 0:00:43]} Rd7 {[%emt 0:01:00]} 38. Kh1 {[%emt 0:00:19]} Be5 {[%emt 0:01:35]} 39. Rd1 {[%emt 0:00:37]} Ra7 {[%emt 0:00:51]} 40. Bb5 {[%emt 0:00:25]} Bd4 {[%emt 0:00:25]} 41. Kh2 {[%emt 0:00:27]} f5 {[%emt 0:00:36]} 42. exf5 {[%emt 0:00:17]} gxf5 {[%emt 0:00:08]} 43. Bd3 {[%emt 0:00:35]} f4 {[%emt 0:00:33]} 44. Re1 {[%emt 0:00:28]} Be3 {[%emt 0:00:33]} 45. Be2 {[%emt 0:00:33]} Rd7 {[%emt 0:00:53]} 46. Rd1 {[%emt 0:00:14]} Rxd1 {[%emt 0:00:15]} 47. Bxd1 {[%emt 0:00:05]} Kf6 {[%emt 0:00:13]} 48. g3 {[%emt 0:00:28]} Ke5 {[%emt 0:00:25]} 49. Kg2 {[%emt 0:01:24]} fxg3 {[%emt 0:00:48]} 50. Kxg3 {[%emt 0:00:11]} Kd4 {[%emt 0:00:22]} 51. Kf3 {[%emt 0:00:10]} Bg5 {[%emt 0:00:26]} 52. Be2 {[%emt 0:00:58]} Kc3 {[%emt 0:00:23]} 53. Ke4 {[%emt 0:00:08]} Kb2 {[%emt 0:00:35]} 54. Kd3 {[%emt 0:00:05]} Bf6 {[%emt 0:00:49]} 55. Bf1 {[%emt 0:00:16]} Bd4 {[%emt 0:00:33]} 56. Be2 {[%emt 0:00:10]} Bf2 {[%emt 0:00:33]} 57. Bf1 {[%emt 0:00:11]} Be1 {[%emt 0:00:30]} 58. Bg2 {[%emt 0:01:23]} a4 {[%emt 0:00:39]} 59. Bd5 {[%emt 0:00:43]} axb3 {[%emt 0:00:31]} 60. Bxb3 {[%emt 0:00:09]} Bb4 {[%emt 0:00:29]} 61. Bc4 {[%emt 0:01:01]} Kc1 {[%emt 0:00:20]} 62. Bb3 {[%emt 0:00:09]} Kb2 {[%emt 0:00:13]} 63. Bd5 {[%emt 0:00:13]} Kc1 {[%emt 0:00:18]} 64. Bb3 {[%emt 0:00:20]} Kb2 {[%emt 0:00:08]} 65. Bd5 {[%emt 0:00:05]} 1/2-1/2

[Event "HUN-chT Youth-Children 2018"]
[Site "Zalakaros"]
[Date "2018.07.27"]
[Round "4"]
[White "Reviczki, Roland"]
[Black "Kelemen, David"]
[Result "0-1"]
[ECO "B33"]
[WhiteElo "1931"]
[BlackElo "2055"]
[Annotator "NA"]
[PlyCount "46"]
[EventDate "2018.07.26"]
[EventType "team-tourn"]
[EventCountry "HUN"]
[SourceTitle "playchess.com"]
[Source "ChessBase"]
[SourceQuality "1"]
[TimeControl "5400+30"]

1. e4 {[%emt 0:00:00]} c5 {[%emt 0:00:07]} 2. Nf3 {[%emt 0:00:20]} Nc6 {[%emt 0:00:08]} 3. d4 {[%emt 0:00:15]} cxd4 {[%emt 0:00:06]} 4. Nxd4 {[%emt 0:00:10]} Nf6 {[%emt 0:00:08]} 5. Nc3 {[%emt 0:00:08]} g6 {[%emt 0:00:05]} 6. Be3 {[%emt 0:03:42]} Bg7 {[%emt 0:00:11]} 7. f3 {[%emt 0:13:34]} O-O {[%emt 0:00:20]} 8. Bc4 {[%emt 0:02:38]} Qb6 {[%emt 0:00:49]} 9. Bb3 {[%emt 0:27:52]} Nxe4 {[%emt 0:02:18]} 10. Nxe4 {[%emt 0:01:34]} Bxd4 {[%emt 0:00:56]} 11. Bxd4 {[%emt 0:00:30]} Nxd4 {[%emt 0:01:17]} 12. Qd3 {[%emt 0:01:57]} Nxb3 {[%emt 0:02:03]} 13. axb3 {[%emt 0:00:09]} Rd8 {[%emt 0:06:18]} 14. Ra4 {[%emt 0:03:01]} d5 {[%emt 0:00:58]} 15. Rd4 {[%emt 0:03:34]} Bf5 {[%emt 0:07:42]} 16. Rxd5 {[%emt 0:01:51]} Rxd5 {[%emt 0:00:07]} 17. Qxd5 {[%emt 0:00:09]} Rd8 {[%emt 0:01:18]} 18. Qc5 {[%emt 0:00:48]} Qxc5 {[%emt 0:00:46]} 19. Nxc5 {[%emt 0:00:03]} Bxc2 {[%emt 0:00:07]} 20. O-O b6 {[%emt 0:00:09]} 21. Na4 {[%emt 0:04:35]} Rd1 {[%emt 0:00:56]} 22. Nc3 {[%emt 0:01:00]} Rxf1+ {[%emt 0:00:06]} 23. Kxf1 {[%emt 0:00:05]} Bxb3 {[%emt 0:00:01]} 0-1

[Event "HUN-chT Youth-Children 2018"]
[Site "Zalakaros"]
[Date "2018.07.27"]
[Round "4"]
[White "Juhasz, Adam"]
[Black "Demjen, Mark"]
[Result "1/2-1/2"]
[ECO "A46"]
[WhiteElo "1929"]
[BlackElo "1789"]
[Annotator "NA"]
[PlyCount "83"]
[EventDate "2018.07.26"]
[EventType "team-tourn"]
[EventCountry "HUN"]
[SourceTitle "playchess.com"]
[Source "ChessBase"]
[SourceQuality "1"]
[TimeControl "5400+30"]

1. d4 {[%emt 0:00:00]} Nf6 {[%emt 0:00:11]} 2. Nf3 {[%emt 0:00:00]} c5 {[%emt 0:00:28]} 3. c3 {[%emt 0:00:30]} g6 {[%emt 0:00:51]} 4. Bf4 {[%emt 0:01:43]} Bg7 {[%emt 0:00:22]} 5. e3 {[%emt 0:00:43]} O-O {[%emt 0:00:14]} 6. Bd3 {[%emt 0:02:09]} d6 {[%emt 0:00:51]} 7. O-O {[%emt 0:01:42]} Nc6 {[%emt 0:01:44]} 8. Bg3 {[%emt 0:06:49]} Re8 {[%emt 0:00:59]} 9. Qc2 {[%emt 0:05:15]} e5 {[%emt 0:12:36]} 10. dxe5 {[%emt 0:02:34]} dxe5 {[%emt 0:00:41]} 11. e4 {[%emt 0:00:57]} Qe7 {[%emt 0:05:24]} 12. Nbd2 {[%emt 0:04:23]} Nh5 {[%emt 0:03:03]} 13. Rfe1 {[%emt 0:14:58]} Qf8 {[%emt 0:07:29]} 14. Bc4 {[%emt 0:06:49]} Be6 {[%emt 0:09:44]} 15. Bxe6 {[%emt 0:03:28]} Rxe6 {[%emt 0:00:50]} 16. Nc4 {[%emt 0:02:49]} h6 {[%emt 0:06:40]} 17. Rad1 {[%emt 0:05:30]} b5 {[%emt 0:05:01]} 18. Ne3 {[%emt 0:01:10]} Bh8 {[%emt 0:05:26]} 19. Nd5 {[%emt 0:07:37]} Rc8 {[%emt 0:03:00]} 20. Rd2 {[%emt 0:02:58]} f5 {[%emt 0:06:15]} 21. h3 {[%emt 0:09:33]} f4 {[%emt 0:02:18]} 22. Bh2 {[%emt 0:00:20]} g5 {[%emt 0:02:02]} 23. a4 {[%emt 0:05:46]} bxa4 {[%emt 0:07:01]} 24. Qxa4 {[%emt 0:00:42]} Rg6 {[%emt 0:03:04]} 25. Qc4 {[%emt 0:00:29]} Kh7 {[%emt 0:00:29]} 26. Ra1 {[%emt 0:02:01]} Bf6 {[%emt 0:01:32]} 27. Ra6 {[%emt 0:03:01]} g4 {[%emt 0:03:49]} 28. hxg4 {[%emt 0:03:11]} Rxg4 {[%emt 0:00:09]} 29. Nxf6+ {[%emt 0:01:48]} Qxf6 {[%emt 0:07:54]} 30. Rd7+ {[%emt 0:00:10]} Kh8 {[%emt 0:00:06]} 31. Qf7 {[%emt 0:01:19]} Qxf7 {[%emt 0:01:13]} 32. Rxf7 {[%emt 0:00:00]} Rg6 {[%emt 0:01:10]} 33. Rd7 {[%emt 0:02:48]} Rcg8 {[%emt 0:01:37]} 34. Nh4 {[%emt 0:01:21]} Re6 {[%emt 0:00:35]} 35. Rd5 {[%emt 0:00:41]} Rc8 {[%emt 0:01:58]} 36. Rxc5 {[%emt 0:00:44]} Nf6 {[%emt 0:00:31]} 37. f3 {[%emt 0:00:35]} Nd7 {[%emt 0:00:15]} 38. Rd5 {[%emt 0:00:40]} Nb6 {[%emt 0:00:20]} 39. Rd1 {[%emt 0:00:30]} Nc4 {[%emt 0:00:24]} 40. b4 {[%emt 0:01:01]} Ne3 {[%emt 0:00:13]} 41. Rd2 {[%emt 0:00:20]} Nc4 {[%emt 0:00:22]} 42. Rd7 1/2-1/2

[Event "HUN-chT Youth-Children 2018"]
[Site "Zalakaros"]
[Date "2018.07.27"]
[Round "4"]
[White "Koszta, Benedek"]
[Black "Hatala, Csaba Laszlo"]
[Result "1-0"]
[ECO "C25"]
[WhiteElo "1901"]
[BlackElo "1958"]
[Annotator "NA"]
[PlyCount "27"]
[EventDate "2018.07.26"]
[EventType "team-tourn"]
[EventCountry "HUN"]
[SourceTitle "playchess.com"]
[Source "ChessBase"]
[SourceQuality "1"]
[TimeControl "5400+30"]

1. e4 {[%emt 0:00:00]} e5 {[%emt 0:00:04]} 2. Nc3 {[%emt 0:00:00]} Nc6 {[%emt 0:00:08]} 3. Bc4 {[%emt 0:00:00]} Bc5 {[%emt 0:00:49]} 4. Qg4 {[%emt 0:00:40]} Qf6 {[%emt 0:01:16]} 5. Nd5 {[%emt 0:00:14]} Qxf2+ {[%emt 0:01:38]} 6. Kd1 {[%emt 0:00:09]} g6 {[%emt 0:07:01]} 7. Nh3 {[%emt 0:00:56]} Qd4 {[%emt 0:04:38]} 8. d3 {[%emt 0:00:28]} Be7 {[%emt 0:06:59]} 9. Qf3 {[%emt 0:07:05]} f6 {[%emt 0:05:12]} 10. Rf1 {[%emt 0:02:10]} Bd8 {[%emt 0:02:39]} 11. g4 {[%emt 0:15:56]} Qc5 {[%emt 0:08:52]} 12. g5 {[%emt 0:00:41]} b5 {[%emt 0:02:09]} 13. gxf6 {[%emt 0:02:54]} Kf8 {[%emt 0:00:52]} 14. f7 {[%emt 0:00:17]} 1-0

[Event "HUN-chT Youth-Children 2018"]
[Site "Zalakaros"]
[Date "2018.07.27"]
[Round "4"]
[White "Farkas, Otto Jr"]
[Black "Koteljarto, Aron"]
[Result "1-0"]
[ECO "B13"]
[WhiteElo "1880"]
[BlackElo "1404"]
[Annotator "NA"]
[PlyCount "85"]
[EventDate "2018.07.26"]
[EventType "team-tourn"]
[EventCountry "HUN"]
[SourceTitle "playchess.com"]
[Source "ChessBase"]
[SourceQuality "1"]
[TimeControl "5400+30"]

1. e4 {[%emt 0:00:21]} c6 {[%emt 0:00:09]} 2. d4 {[%emt 0:00:33]} d5 {[%emt 0:00:05]} 3. exd5 {[%emt 0:00:05]} cxd5 {[%emt 0:00:07]} 4. c4 {[%emt 0:00:15]} Nf6 {[%emt 0:00:09]} 5. Nc3 {[%emt 0:00:09]} Nc6 {[%emt 0:00:57]} 6. Be3 {[%emt 0:00:39]} e6 {[%emt 0:00:22]} 7. Nf3 {[%emt 0:00:28]} Bd7 {[%emt 0:00:10]} 8. Be2 {[%emt 0:00:22]} dxc4 {[%emt 0:00:23]} 9. Bxc4 g6 {[%emt 0:01:30]} 10. O-O {[%emt 0:00:38]} Bg7 {[%emt 0:00:03]} 11. Qd2 {[%emt 0:02:31]} O-O {[%emt 0:00:13]} 12. Rac1 {[%emt 0:00:49]} Rc8 {[%emt 0:00:25]} 13. Be2 {[%emt 0:03:26]} a6 {[%emt 0:01:27]} 14. Rfd1 {[%emt 0:01:16]} Ne7 {[%emt 0:01:53]} 15. Ne5 {[%emt 0:01:03]} Nfd5 {[%emt 0:02:27]} 16. Nxd5 {[%emt 0:01:03]} Nxd5 {[%emt 0:00:15]} 17. Nxd7 {[%emt 0:04:28]} Qxd7 {[%emt 0:00:14]} 18. Bg5 {[%emt 0:00:59]} Rfe8 {[%emt 0:11:22]} 19. b3 {[%emt 0:02:21]} Bf8 {[%emt 0:11:47]} 20. Qb2 {[%emt 0:07:20]} Bg7 {[%emt 0:18:00]} 21. Qd2 {[%emt 0:02:53]} Bf8 {[%emt 0:00:55]} 22. Bc4 {[%emt 0:05:48]} b5 {[%emt 0:05:18]} 23. Bxd5 {[%emt 0:00:41]} Qxd5 {[%emt 0:00:22]} 24. Be3 {[%emt 0:00:53]} Bg7 {[%emt 0:01:21]} 25. Rc5 {[%emt 0:02:03]} Qd7 {[%emt 0:00:54]} 26. Rdc1 {[%emt 0:00:14]} Rxc5 {[%emt 0:04:51]} 27. dxc5 {[%emt 0:00:48]} Qc6 {[%emt 0:00:29]} 28. Qd6 {[%emt 0:01:09]} Rc8 {[%emt 0:00:31]} 29. b4 {[%emt 0:02:10]} Bf8 {[%emt 0:01:07]} 30. Qxc6 {[%emt 0:00:12]} Rxc6 {[%emt 0:00:12]} 31. Rd1 {[%emt 0:00:17]} Rc7 {[%emt 0:02:55]} 32. Rd8 {[%emt 0:00:17]} Kg7 {[%emt 0:00:49]} 33. Bf4 {[%emt 0:01:37]} Rc6 {[%emt 0:02:29]} 34. Be5+ {[%emt 0:00:53]} f6 {[%emt 0:00:46]} 35. Rd7+ {[%emt 0:00:09]} Kg8 {[%emt 0:00:08]} 36. Bxf6 {[%emt 0:00:33]} Rc8 {[%emt 0:01:18]} 37. g3 {[%emt 0:01:37]} Rc6 {[%emt 0:00:31]} 38. Kg2 {[%emt 0:00:09]} h6 {[%emt 0:00:48]} 39. Kf3 {[%emt 0:01:03]} Rc8 {[%emt 0:00:20]} 40. Ke4 {[%emt 0:00:55]} g5 {[%emt 0:00:43]} 41. Rd8 {[%emt 0:00:32]} Rc7 {[%emt 0:00:17]} 42. Be5 {[%emt 0:00:12]} Rc6 {[%emt 0:00:24]} 43. Bd6 {[%emt 0:00:08]} 1-0

[Event "HUN-chT Youth-Children 2018"]
[Site "Zalakaros"]
[Date "2018.07.27"]
[Round "4"]
[White "Juhasz, Judit"]
[Black "Kiss, Eniko"]
[Result "1-0"]
[ECO "B29"]
[WhiteElo "1877"]
[BlackElo "1697"]
[Annotator "NA"]
[PlyCount "45"]
[EventDate "2018.07.26"]
[EventType "team-tourn"]
[EventCountry "HUN"]
[SourceTitle "playchess.com"]
[Source "ChessBase"]
[SourceQuality "1"]
[TimeControl "5400+30"]

1. e4 {[%emt 0:00:00]} c5 {[%emt 0:00:06]} 2. Nf3 {[%emt 0:00:00]} Nf6 {[%emt 0:00:41]} 3. e5 {[%emt 0:00:25]} Nd5 {[%emt 0:00:26]} 4. Nc3 {[%emt 0:00:07]} Nxc3 {[%emt 0:02:55]} 5. dxc3 {[%emt 0:00:11]} d6 {[%emt 0:02:55]} 6. Bc4 {[%emt 0:01:20]} e6 {[%emt 0:06:12]} 7. exd6 {[%emt 0:10:49]} Bxd6 {[%emt 0:06:44]} 8. Be3 {[%emt 0:01:12]} O-O {[%emt 0:02:07]} 9. O-O {[%emt 0:01:57]} b6 {[%emt 0:01:55]} 10. Qe2 {[%emt 0:01:46]} Qc7 {[%emt 0:04:34]} 11. Rfd1 {[%emt 0:01:28]} Bb7 {[%emt 0:02:00]} 12. h3 {[%emt 0:00:19]} Nc6 {[%emt 0:05:10]} 13. a3 {[%emt 0:06:58]} Ne7 {[%emt 0:12:25]} 14. Bd3 {[%emt 0:19:56]} Rac8 {[%emt 0:16:18]} 15. c4 {[%emt 0:05:18]} Bc6 {[%emt 0:05:03]} 16. Bxh7+ {[%emt 0:17:15]} Kxh7 {[%emt 0:08:44]} 17. Ng5+ {[%emt 0:00:08]} Kg6 {[%emt 0:08:00]} 18. Qd3+ {[%emt 0:06:12]} Nf5 {[%emt 0:05:24]} 19. g4 {[%emt 0:00:39]} Bh2+ {[%emt 0:01:35]} 20. Kf1 {[%emt 0:00:04]} Rfd8 {[%emt 0:05:07]} 21. gxf5+ {[%emt 0:00:16]} exf5 {[%emt 0:00:24]} 22. Qe2 {[%emt 0:00:46]} Qb7 {[%emt 0:02:13]} 23. f3 {[%emt 0:08:56]} 1-0

[Event "HUN-chT Youth-Children 2018"]
[Site "Zalakaros"]
[Date "2018.07.27"]
[Round "4"]
[White "Sulyok, Eszter"]
[Black "Pogany, Zsombor"]
[Result "0-1"]
[ECO "D02"]
[WhiteElo "1804"]
[BlackElo "2081"]
[Annotator "NA"]
[PlyCount "74"]
[EventDate "2018.07.26"]
[EventType "team-tourn"]
[EventCountry "HUN"]
[SourceTitle "playchess.com"]
[Source "ChessBase"]
[SourceQuality "1"]
[TimeControl "5400+30"]

1. Nf3 {[%emt 0:00:00]} d5 {[%emt 0:00:00]} 2. d4 {[%emt 0:00:00]} Nf6 {[%emt 0:00:00]} 3. Bf4 {[%emt 0:01:19]} e6 {[%emt 0:00:37]} 4. e3 {[%emt 0:02:19]} Bd6 {[%emt 0:00:22]} 5. Bxd6 {[%emt 0:00:32]} Qxd6 {[%emt 0:00:09]} 6. a3 {[%emt 0:01:25]} O-O {[%emt 0:00:23]} 7. c4 {[%emt 0:00:03]} Nbd7 {[%emt 0:01:42]} 8. Nc3 {[%emt 0:00:36]} a6 {[%emt 0:00:11]} 9. Bd3 {[%emt 0:00:56]} dxc4 {[%emt 0:00:20]} 10. Bxc4 {[%emt 0:00:17]} b5 {[%emt 0:00:13]} 11. Bd3 {[%emt 0:01:35]} c5 {[%emt 0:01:07]} 12. dxc5 {[%emt 0:00:21]} Qxc5 {[%emt 0:00:29]} 13. Rc1 {[%emt 0:02:08]} Qb6 {[%emt 0:00:46]} 14. O-O {[%emt 0:01:54]} Bb7 {[%emt 0:00:22]} 15. Qe2 {[%emt 0:02:04]} Rac8 {[%emt 0:01:31]} 16. b4 {[%emt 0:03:33]} Rfd8 {[%emt 0:03:45]} 17. Rfd1 {[%emt 0:02:05]} h6 {[%emt 0:01:57]} 18. h3 {[%emt 0:07:15]} Rc7 {[%emt 0:08:37]} 19. Rc2 {[%emt 0:13:57]} Bxf3 {[%emt 0:08:39]} 20. Qxf3 {[%emt 0:01:15]} Ne5 {[%emt 0:00:42]} 21. Qe2 {[%emt 0:00:16]} Nxd3 {[%emt 0:00:17]} 22. Rxd3 {[%emt 0:00:24]} Rdc8 {[%emt 0:00:16]} 23. Qd1 {[%emt 0:02:54]} Rc4 {[%emt 0:04:28]} 24. f3 {[%emt 0:07:50]} e5 {[%emt 0:08:03]} 25. Qd2 {[%emt 0:16:41]} e4 {[%emt 0:05:15]} 26. Rd4 {[%emt 0:02:03]} Rxd4 {[%emt 0:01:09]} 27. exd4 {[%emt 0:00:14]} exf3 {[%emt 0:01:15]} 28. Ne4 {[%emt 0:15:27]} Rxc2 {[%emt 0:00:24]} 29. Qxc2 {[%emt 0:00:22]} Qxd4+ {[%emt 0:00:26]} 30. Nf2 {[%emt 0:00:05]} Qa1+ {[%emt 0:02:33]} 31. Nd1 {[%emt 0:00:19]} fxg2 {[%emt 0:00:55]} 32. Kxg2 {[%emt 0:03:44]} g6 {[%emt 0:01:24]} 33. Nf2 {[%emt 0:06:50]} Qxa3 {[%emt 0:00:46]} 34. Nd3 {[%emt 0:00:28]} Kg7 {[%emt 0:00:47]} 35. Kf3 {[%emt 0:01:45]} Nd5 {[%emt 0:02:24]} 36. Qe2 {[%emt 0:03:10]} Nxb4 {[%emt 0:00:45]} 37. Qe5+ {[%emt 0:00:07]} Kh7 {[%emt 0:00:12]} 0-1

[Event "HUN-chT Youth-Children 2018"]
[Site "Zalakaros"]
[Date "2018.07.27"]
[Round "4"]
[White "Kocsis, Peter"]
[Black "Juhasz, Balazs"]
[Result "1/2-1/2"]
[ECO "A04"]
[WhiteElo "1756"]
[BlackElo "1687"]
[Annotator "NA"]
[PlyCount "67"]
[EventDate "2018.07.26"]
[EventType "team-tourn"]
[EventCountry "HUN"]
[SourceTitle "playchess.com"]
[Source "ChessBase"]
[SourceQuality "1"]
[TimeControl "5400+30"]

1. Nf3 {[%emt 0:00:00]} b6 {[%emt 0:00:10]} 2. b3 {[%emt 0:00:13]} Nf6 {[%emt 0:00:08]} 3. Bb2 {[%emt 0:00:07]} Bb7 {[%emt 0:00:22]} 4. e3 {[%emt 0:00:23]} d5 {[%emt 0:01:20]} 5. d4 {[%emt 0:00:09]} e6 {[%emt 0:00:22]} 6. Bd3 {[%emt 0:00:31]} Be7 {[%emt 0:01:49]} 7. O-O {[%emt 0:00:08]} O-O {[%emt 0:00:10]} 8. Nbd2 {[%emt 0:00:58]} c5 {[%emt 0:01:02]} 9. c4 {[%emt 0:00:41]} cxd4 {[%emt 0:05:24]} 10. Nxd4 {[%emt 0:01:58]} Nc6 {[%emt 0:00:36]} 11. Nxc6 {[%emt 0:02:41]} Bxc6 {[%emt 0:00:03]} 12. Qe2 {[%emt 0:01:18]} dxc4 {[%emt 0:02:40]} 13. Nxc4 {[%emt 0:02:13]} Nd5 {[%emt 0:04:17]} 14. Rfd1 {[%emt 0:03:48]} Bf6 {[%emt 0:03:37]} 15. Rac1 {[%emt 0:02:39]} Bxb2 {[%emt 0:06:10]} 16. Nxb2 {[%emt 0:00:45]} Bb7 {[%emt 0:08:45]} 17. Ba6 {[%emt 0:06:58]} Qe7 {[%emt 0:05:47]} 18. Bxb7 {[%emt 0:04:37]} Qxb7 {[%emt 0:00:19]} 19. Nc4 {[%emt 0:03:01]} Rfd8 {[%emt 0:03:31]} 20. Qf3 {[%emt 0:01:39]} Rac8 {[%emt 0:05:34]} 21. h3 {[%emt 0:05:45]} Qe7 {[%emt 0:09:13]} 22. Ne5 {[%emt 0:02:26]} Rxc1 {[%emt 0:04:12]} 23. Rxc1 {[%emt 0:00:19]} Nb4 {[%emt 0:02:38]} 24. Rc4 {[%emt 0:05:54]} f6 {[%emt 0:05:28]} 25. Nc6 {[%emt 0:01:38]} Nxc6 {[%emt 0:00:34]} 26. Qxc6 {[%emt 0:00:33]} Qd7 {[%emt 0:09:23]} 27. b4 {[%emt 0:06:30]} Kf7 {[%emt 0:08:57]} 28. Qc7 {[%emt 0:03:06]} Ke7 {[%emt 0:01:52]} 29. Kf1 {[%emt 0:03:36]} Rc8 {[%emt 0:05:04]} 30. Qxd7+ {[%emt 0:01:10]} Kxd7 {[%emt 0:00:04]} 31. Rxc8 {[%emt 0:00:25]} Kxc8 {[%emt 0:00:01]} 32. Ke2 {[%emt 0:00:30]} b5 {[%emt 0:02:11]} 33. Kd3 {[%emt 0:00:26]} Kc7 {[%emt 0:00:14]} 34. Ke4 1/2-1/2

[Event "HUN-chT Youth-Children 2018"]
[Site "Zalakaros"]
[Date "2018.07.27"]
[Round "4"]
[White "Baski, Barnabas"]
[Black "Diller, Denis"]
[Result "0-1"]
[ECO "A05"]
[WhiteElo "1740"]
[BlackElo "2057"]
[Annotator "NA"]
[PlyCount "104"]
[EventDate "2018.07.26"]
[EventType "team-tourn"]
[EventCountry "HUN"]
[SourceTitle "playchess.com"]
[Source "ChessBase"]
[SourceQuality "1"]
[TimeControl "5400+30"]

1. Nf3 {[%emt 0:00:00]} Nf6 {[%emt 0:00:08]} 2. g3 {[%emt 0:00:00]} g6 {[%emt 0:00:17]} 3. Bg2 {[%emt 0:00:00]} Bg7 {[%emt 0:00:06]} 4. O-O {[%emt 0:00:03]} O-O {[%emt 0:00:15]} 5. d4 {[%emt 0:00:12]} d5 {[%emt 0:00:06]} 6. b3 {[%emt 0:02:13]} Ne4 {[%emt 0:01:22]} 7. Bb2 {[%emt 0:01:07]} f5 {[%emt 0:02:38]} 8. Nbd2 {[%emt 0:03:41]} Nd7 {[%emt 0:04:25]} 9. c4 {[%emt 0:04:49]} e6 {[%emt 0:01:41]} 10. cxd5 {[%emt 0:11:16]} exd5 {[%emt 0:00:07]} 11. Ne5 {[%emt 0:00:58]} Nxe5 {[%emt 0:02:17]} 12. dxe5 {[%emt 0:00:02]} Qe7 {[%emt 0:04:54]} 13. Nxe4 {[%emt 0:06:03]} dxe4 {[%emt 0:00:11]} 14. Qd5+ {[%emt 0:03:53]} Kh8 {[%emt 0:00:45]} 15. Rfd1 {[%emt 0:03:30]} c6 {[%emt 0:07:19]} 16. Qd6 {[%emt 0:02:05]} Qxd6 {[%emt 0:00:08]} 17. Rxd6 {[%emt 0:00:03]} Re8 {[%emt 0:00:08]} 18. Rad1 {[%emt 0:01:10]} Be6 {[%emt 0:00:10]} 19. f3 {[%emt 0:15:40]} Bd5 {[%emt 0:04:39]} 20. fxe4 {[%emt 0:05:51]} fxe4 {[%emt 0:00:26]} 21. R6xd5 {[%emt 0:07:27]} cxd5 {[%emt 0:00:33]} 22. Rxd5 {[%emt 0:00:13]} Rad8 {[%emt 0:09:13]} 23. Bxe4 {[%emt 0:07:38]} Rxd5 {[%emt 0:02:44]} 24. Bxd5 {[%emt 0:00:01]} Bxe5 {[%emt 0:00:43]} 25. Bxe5+ {[%emt 0:00:30]} Rxe5 {[%emt 0:00:02]} 26. e4 {[%emt 0:00:28]} Re7 {[%emt 0:01:09]} 27. a4 {[%emt 0:06:24]} Kg7 {[%emt 0:00:14]} 28. Kf2 {[%emt 0:00:37]} Kf6 {[%emt 0:00:04]} 29. Ke3 {[%emt 0:05:09]} Ke5 {[%emt 0:00:05]} 30. Kd3 {[%emt 0:02:32]} Rc7 {[%emt 0:00:18]} 31. Bc4 {[%emt 0:00:58]} b6 {[%emt 0:00:47]} 32. Ke3 {[%emt 0:01:21]} g5 {[%emt 0:00:56]} 33. Kf3 {[%emt 0:05:06]} h5 {[%emt 0:00:20]} 34. Ke3 {[%emt 0:02:23]} g4 {[%emt 0:00:08]} 35. Kd3 {[%emt 0:00:27]} h4 {[%emt 0:01:54]} 36. Ke3 {[%emt 0:01:23]} hxg3 {[%emt 0:00:07]} 37. hxg3 {[%emt 0:00:03]} a5 {[%emt 0:00:28]} 38. Be2 {[%emt 0:02:47]} Rc3+ {[%emt 0:00:04]} 39. Kf2 {[%emt 0:00:08]} Rxb3 {[%emt 0:00:34]} 40. Bxg4 {[%emt 0:00:12]} Kxe4 {[%emt 0:00:13]} 41. Bd7 {[%emt 0:00:59]} Rb2+ {[%emt 0:00:37]} 42. Kg1 {[%emt 0:00:28]} Kf3 {[%emt 0:00:39]} 43. g4 {[%emt 0:00:32]} Rd2 {[%emt 0:00:08]} 44. Bc6+ {[%emt 0:00:33]} Kxg4 {[%emt 0:00:06]} 45. Kf1 {[%emt 0:00:12]} Kf4 {[%emt 0:00:12]} 46. Ke1 {[%emt 0:00:16]} Ke3 {[%emt 0:00:05]} 47. Be8 {[%emt 0:00:42]} Kd3 {[%emt 0:00:20]} 48. Bb5+ {[%emt 0:00:21]} Kc3 {[%emt 0:00:07]} 49. Bc6 {[%emt 0:00:08]} Rd4 {[%emt 0:00:09]} 50. Bb5 {[%emt 0:00:08]} Kb3 {[%emt 0:00:13]} 51. Bc6 {[%emt 0:00:08]} Rxa4 {[%emt 0:00:14]} 52. Bxa4+ {[%emt 0:00:07]} Kxa4 {[%emt 0:00:06]} 0-1